[Event "*** Titled Tuesday Blitz"]
[Site "Chess.com"]
[Date "2021.03.09"]
[Round "6"]
[White "SameerMujumdar"]
[Black "AliKa2810"]
[Result "0-1"]
[WhiteElo "2358"]
[BlackElo "2552"]
[TimeControl "180+1"]
[EndTime "11:08:57 PST"]
[Termination "AliKa2810 won by resignation"]

1. d4 {[%clk 0:03:00.9]} 1... d5 {[%clk 0:02:59.5]} 2. c4 {[%clk 0:03:00.4]}
2... c6 {[%clk 0:03:00.1]} 3. cxd5 {[%clk 0:02:58.3]} 3... cxd5 {[%clk 0:03:01]}
4. Nc3 {[%clk 0:02:58.4]} 4... Nf6 {[%clk 0:03:00.2]} 5. Bf4 {[%clk 0:02:58.8]}
5... Nc6 {[%clk 0:02:59.5]} 6. Nf3 {[%clk 0:02:59.3]} 6... Bf5 {[%clk 0:02:51]}
7. e3 {[%clk 0:02:58.8]} 7... e6 {[%clk 0:02:50.9]} 8. Bd3 {[%clk 0:02:57.6]}
8... Bxd3 {[%clk 0:02:49.8]} 9. Qxd3 {[%clk 0:02:58.5]} 9... Bd6 {[%clk
0:02:44]} 10. Bxd6 {[%clk 0:02:55.7]} 10... Qxd6 {[%clk 0:02:44.9]} 11. O-O
{[%clk 0:02:55.4]} 11... O-O {[%clk 0:02:45.3]} 12. Rfc1 {[%clk 0:02:55.7]}
12... a6 {[%clk 0:02:35.8]} 13. Na4 {[%clk 0:02:52.9]} 13... Ne4 {[%clk
0:02:28.6]} 14. Nd2 {[%clk 0:02:45.8]} 14... f5 {[%clk 0:02:01.9]} 15. a3 {[%clk
0:02:30]} 15... Rf6 {[%clk 0:01:58.1]} 16. f4 {[%clk 0:02:23.5]} 16... g5 {[%clk
0:01:44.2]} 17. Rf1 {[%clk 0:02:11.3]} 17... Rg6 {[%clk 0:01:36.3]} 18. Nxe4
{[%clk 0:02:04.7]} 18... fxe4 {[%clk 0:01:34.2]} 19. Qb3 {[%clk 0:01:58.2]}
19... gxf4 {[%clk 0:01:31.3]} 20. Rxf4 {[%clk 0:01:57.4]} 20... Nxd4 {[%clk
0:01:31.1]} 21. Qxb7 {[%clk 0:01:54.9]} 21... Ne2+ {[%clk 0:00:57.5]} 22. Kh1
{[%clk 0:01:54.3]} 22... Rf8 {[%clk 0:00:57.4]} 23. Rxf8+ {[%clk 0:01:50.3]}
23... Qxf8 {[%clk 0:00:58.3]} 24. Nc3 {[%clk 0:00:57.1]} 24... Qf2 {[%clk
0:00:52.7]} 25. Qb8+ {[%clk 0:00:50.7]} 25... Kg7 {[%clk 0:00:47.9]} 0-1

[Event "*** Titled Tuesday Blitz"]
[Site "Chess.com"]
[Date "2021.03.09"]
[Round "6"]
[White "QuintilianoR"]
[Black "NiranjanNavalgund"]
[Result "1/2-1/2"]
[WhiteElo "2677"]
[BlackElo "2453"]
[TimeControl "180+1"]
[EndTime "11:09:00 PST"]
[Termination "Game drawn by agreement"]

1. d4 {[%clk 0:03:00.9]} 1... Nf6 {[%clk 0:02:58.1]} 2. Nf3 {[%clk 0:03:01.3]}
2... e6 {[%clk 0:02:57]} 3. e3 {[%clk 0:03:01.7]} 3... c5 {[%clk 0:02:56.4]} 4.
Nbd2 {[%clk 0:03:00.4]} 4... d5 {[%clk 0:02:53]} 5. c3 {[%clk 0:02:59.7]} 5...
Nc6 {[%clk 0:02:53.6]} 6. Bd3 {[%clk 0:03:00]} 6... Bd6 {[%clk 0:02:54.1]} 7.
O-O {[%clk 0:03:00.5]} 7... O-O {[%clk 0:02:54.6]} 8. dxc5 {[%clk 0:03:01.1]}
8... Bxc5 {[%clk 0:02:54.4]} 9. b4 {[%clk 0:03:01.7]} 9... Bd6 {[%clk
0:02:49.8]} 10. Bb2 {[%clk 0:03:02]} 10... a6 {[%clk 0:02:45.4]} 11. a3 {[%clk
0:02:56.4]} 11... e5 {[%clk 0:02:42.9]} 12. e4 {[%clk 0:02:54.9]} 12... dxe4
{[%clk 0:02:40.9]} 13. Nxe4 {[%clk 0:02:55.8]} 13... Nxe4 {[%clk 0:02:36.8]} 14.
Bxe4 {[%clk 0:02:54]} 14... f5 {[%clk 0:02:37.7]} 15. Bd5+ {[%clk 0:01:16]}
15... Kh8 {[%clk 0:02:37]} 16. c4 {[%clk 0:01:11.1]} 16... e4 {[%clk 0:02:23.6]}
17. Bxc6 {[%clk 0:00:57.9]} 17... bxc6 {[%clk 0:02:24.5]} 18. Qd4 {[%clk
0:00:57.8]} 18... Qe7 {[%clk 0:02:18.6]} 19. Ne5 {[%clk 0:00:53.1]} 19... Bxe5
{[%clk 0:02:18.2]} 20. Qxe5 {[%clk 0:00:53]} 20... Qxe5 {[%clk 0:02:19.1]} 21.
Bxe5 {[%clk 0:00:53.3]} 21... Be6 {[%clk 0:02:20]} 22. c5 {[%clk 0:00:51.9]}
22... a5 {[%clk 0:02:15.3]} 23. Rab1 {[%clk 0:00:50.1]} 23... axb4 {[%clk
0:02:11.9]} 24. axb4 {[%clk 0:00:51]} 24... Bc4 {[%clk 0:02:12]} 25. Rfd1 {[%clk
0:00:49.2]} 25... Rfd8 {[%clk 0:02:11.6]} 26. h3 {[%clk 0:00:39.1]} 26... Rd3
{[%clk 0:02:06.2]} 27. Rxd3 {[%clk 0:00:33.6]} 27... Bxd3 {[%clk 0:02:05.7]} 28.
Ra1 {[%clk 0:00:28.6]} 28... Rxa1+ {[%clk 0:02:00.5]} 29. Bxa1 {[%clk
0:00:29.5]} 29... Kg8 {[%clk 0:02:00.8]} 30. Bd4 {[%clk 0:00:29]} 30... Kf7
{[%clk 0:01:58]} 31. f3 {[%clk 0:00:29.4]} 31... g6 {[%clk 0:01:57.8]} 32. Kf2
{[%clk 0:00:29.2]} 32... Ke6 {[%clk 0:01:57.3]} 33. g4 {[%clk 0:00:28.6]} 33...
fxg4 {[%clk 0:01:55.9]} 34. hxg4 {[%clk 0:00:27.3]} 34... exf3 {[%clk
0:01:55.8]} 35. Kxf3 {[%clk 0:00:26.4]} 35... h5 {[%clk 0:01:54.9]} 36. gxh5
{[%clk 0:00:26]} 36... gxh5 {[%clk 0:01:55.2]} 37. Kg3 {[%clk 0:00:26.6]} 37...
Kd5 {[%clk 0:01:54.7]} 38. Bc3 {[%clk 0:00:27.5]} 38... Kc4 {[%clk 0:01:54.8]}
39. Be1 {[%clk 0:00:28.4]} 39... Be2 {[%clk 0:01:54.3]} 40. Kh4 {[%clk
0:00:29.3]} 40... Bg4 {[%clk 0:01:54.3]} 41. Kg3 {[%clk 0:00:29.1]} 41... Be2
{[%clk 0:01:54.3]} 42. Kh4 {[%clk 0:00:30]} 42... Bg4 {[%clk 0:01:54.4]} 1/2-1/2

[Event "*** Titled Tuesday Blitz"]
[Site "Chess.com"]
[Date "2021.03.09"]
[Round "6"]
[White "Ranindu2003"]
[Black "Orest_Vovk"]
[Result "1-0"]
[WhiteElo "2621"]
[BlackElo "2433"]
[TimeControl "180+1"]
[EndTime "11:09:00 PST"]
[Termination "Ranindu2003 won by resignation"]

1. e4 {[%clk 0:03:00.9]} 1... Nc6 {[%clk 0:02:59]} 2. Nc3 {[%clk 0:02:59.1]}
2... Nf6 {[%clk 0:02:58.6]} 3. d4 {[%clk 0:02:58.3]} 3... e5 {[%clk 0:02:58.1]}
4. d5 {[%clk 0:02:57.9]} 4... Ne7 {[%clk 0:02:58.2]} 5. f4 {[%clk 0:02:58.6]}
5... exf4 {[%clk 0:02:55.8]} 6. Bxf4 {[%clk 0:02:59.5]} 6... Ng6 {[%clk
0:02:55.5]} 7. Bg3 {[%clk 0:02:55.1]} 7... Bc5 {[%clk 0:02:55.1]} 8. Qd2 {[%clk
0:02:47.6]} 8... d6 {[%clk 0:02:53.1]} 9. O-O-O {[%clk 0:02:46.4]} 9... O-O
{[%clk 0:02:52.1]} 10. Kb1 {[%clk 0:02:44.6]} 10... Ng4 {[%clk 0:02:51.5]} 11.
Re1 {[%clk 0:02:40.7]} 11... a6 {[%clk 0:02:44.5]} 12. h3 {[%clk 0:02:40.2]}
12... N4e5 {[%clk 0:02:44.5]} 13. Nf3 {[%clk 0:02:39.1]} 13... b5 {[%clk
0:02:40]} 14. Be2 {[%clk 0:02:37.6]} 14... Re8 {[%clk 0:02:36.6]} 15. h4 {[%clk
0:02:34.5]} 15... Nxf3 {[%clk 0:02:31.2]} 16. gxf3 {[%clk 0:02:31.2]} 16... Ne5
{[%clk 0:02:29.9]} 17. h5 {[%clk 0:02:22.6]} 17... Nc4 {[%clk 0:02:18.3]} 18.
Bxc4 {[%clk 0:02:20.5]} 18... bxc4 {[%clk 0:02:19.2]} 19. h6 {[%clk 0:02:17.6]}
19... g6 {[%clk 0:01:53.2]} 20. Bh4 {[%clk 0:02:16.9]} 20... Qd7 {[%clk
0:01:52.4]} 21. f4 {[%clk 0:02:11.6]} 21... Rb8 {[%clk 0:01:41.9]} 22. Ka1
{[%clk 0:02:09.6]} 22... f5 {[%clk 0:01:33.6]} 23. exf5 {[%clk 0:02:05]} 23...
Bb7 {[%clk 0:01:19]} 24. fxg6 {[%clk 0:02:00.5]} 24... hxg6 {[%clk 0:01:18.3]}
25. h7+ {[%clk 0:01:48]} 25... Kg7 {[%clk 0:00:36.7]} 26. Ne4 {[%clk 0:01:44.2]}
26... Qf5 {[%clk 0:00:23.6]} 27. Qc3+ {[%clk 0:01:42.3]} 27... Kf7 {[%clk
0:00:17.7]} 28. Ng5+ {[%clk 0:01:35.8]} 1-0

[Event "*** Titled Tuesday Blitz"]
[Site "Chess.com"]
[Date "2021.03.09"]
[Round "6"]
[White "Azerichess"]
[Black "slavenok"]
[Result "1-0"]
[WhiteElo "2971"]
[BlackElo "2728"]
[TimeControl "180+1"]
[EndTime "11:09:10 PST"]
[Termination "Azerichess won by resignation"]

1. d4 {[%clk 0:03:00.9]} 1... d5 {[%clk 0:02:59.2]} 2. c4 {[%clk 0:03:00.2]}
2... e6 {[%clk 0:02:59.7]} 3. Nf3 {[%clk 0:02:59.5]} 3... Nf6 {[%clk 0:03:00.3]}
4. Bg5 {[%clk 0:02:56.2]} 4... Bb4+ {[%clk 0:03:00.5]} 5. Nbd2 {[%clk
0:02:55.8]} 5... h6 {[%clk 0:03:01]} 6. Bh4 {[%clk 0:02:51.6]} 6... O-O {[%clk
0:03:01.5]} 7. e3 {[%clk 0:02:47.2]} 7... b6 {[%clk 0:02:59.5]} 8. cxd5 {[%clk
0:02:45.4]} 8... exd5 {[%clk 0:03:00.4]} 9. a3 {[%clk 0:02:33.6]} 9... Be7
{[%clk 0:02:59.8]} 10. Rc1 {[%clk 0:02:32.5]} 10... Bg4 {[%clk 0:02:59.3]} 11.
Be2 {[%clk 0:02:26.7]} 11... Nbd7 {[%clk 0:02:58.4]} 12. O-O {[%clk 0:02:23.8]}
12... c5 {[%clk 0:02:57.4]} 13. dxc5 {[%clk 0:02:22.1]} 13... bxc5 {[%clk
0:02:58.3]} 14. h3 {[%clk 0:02:19.5]} 14... Bh5 {[%clk 0:02:58]} 15. b3 {[%clk
0:02:03.5]} 15... Qb6 {[%clk 0:02:57]} 16. Qc2 {[%clk 0:02:01.7]} 16... Rac8
{[%clk 0:02:55.3]} 17. Rfd1 {[%clk 0:02:00.4]} 17... Rfd8 {[%clk 0:02:52.5]} 18.
Bd3 {[%clk 0:01:55.2]} 18... Qa5 {[%clk 0:02:47.1]} 19. g4 {[%clk 0:01:46.8]}
19... Bg6 {[%clk 0:02:45.3]} 20. Bxg6 {[%clk 0:01:46.7]} 20... fxg6 {[%clk
0:02:46.2]} 21. Qxg6 {[%clk 0:01:46.2]} 21... Qxa3 {[%clk 0:02:41.6]} 22. Ra1
{[%clk 0:01:38.8]} 22... Qb4 {[%clk 0:02:38.8]} 23. Rxa7 {[%clk 0:01:39.1]}
23... Nf8 {[%clk 0:02:34.4]} 24. Qf5 {[%clk 0:01:33.6]} 24... c4 {[%clk
0:02:27.2]} 25. bxc4 {[%clk 0:01:26.2]} 25... dxc4 {[%clk 0:02:28.1]} 26. Nd4
{[%clk 0:00:46.4]} 26... c3 {[%clk 0:02:23.6]} 27. Ne4 {[%clk 0:00:31.9]} 27...
c2 {[%clk 0:02:17.5]} 28. Rc1 {[%clk 0:00:32.1]} 28... Rxd4 {[%clk 0:02:02.8]}
29. exd4 {[%clk 0:00:21.4]} 29... Qxd4 {[%clk 0:02:02.4]} 30. Rxe7 {[%clk
0:00:19]} 30... Qd1+ {[%clk 0:01:54.8]} 31. Kg2 {[%clk 0:00:18.2]} 31... Qxc1
{[%clk 0:01:51.5]} 32. Nxf6+ {[%clk 0:00:18.2]} 32... Kh8 {[%clk 0:01:38.8]} 33.
Qxc8 {[%clk 0:00:17.3]} 1-0

[Event "*** Titled Tuesday Blitz"]
[Site "Chess.com"]
[Date "2021.03.09"]
[Round "6"]
[White "DarZay"]
[Black "Fortitudine"]
[Result "0-1"]
[WhiteElo "2176"]
[BlackElo "2302"]
[TimeControl "180+1"]
[EndTime "11:09:11 PST"]
[Termination "Fortitudine won by resignation"]

1. e4 {[%clk 0:03:00.9]} 1... c5 {[%clk 0:02:59.4]} 2. Nf3 {[%clk 0:03:00.5]}
2... d6 {[%clk 0:02:58.6]} 3. d4 {[%clk 0:03:00.5]} 3... cxd4 {[%clk 0:02:59.5]}
4. Nxd4 {[%clk 0:03:00.6]} 4... Nf6 {[%clk 0:03:00]} 5. Nc3 {[%clk 0:03:00.6]}
5... Nc6 {[%clk 0:02:59.8]} 6. Bc4 {[%clk 0:02:48.9]} 6... Qb6 {[%clk 0:02:58]}
7. Nb3 {[%clk 0:02:40.4]} 7... Bg4 {[%clk 0:02:56.5]} 8. f3 {[%clk 0:02:30.4]}
8... Bd7 {[%clk 0:02:55.8]} 9. Qe2 {[%clk 0:02:25.8]} 9... e6 {[%clk 0:02:53.4]}
10. Be3 {[%clk 0:02:24.8]} 10... Qc7 {[%clk 0:02:52.9]} 11. O-O-O {[%clk
0:02:19.5]} 11... a6 {[%clk 0:02:52.1]} 12. Bf4 {[%clk 0:02:16.2]} 12... Ne5
{[%clk 0:02:44.1]} 13. Bxe5 {[%clk 0:02:09.3]} 13... dxe5 {[%clk 0:02:45]} 14.
f4 {[%clk 0:01:47.7]} 14... b5 {[%clk 0:02:35.9]} 15. Bd3 {[%clk 0:01:41.4]}
15... Bd6 {[%clk 0:01:51.3]} 16. Bxb5 {[%clk 0:01:08.9]} 16... axb5 {[%clk
0:01:35.9]} 17. Nxb5 {[%clk 0:01:06.5]} 17... Bxb5 {[%clk 0:01:36.2]} 18. Qxb5+
{[%clk 0:01:06]} 18... Kf8 {[%clk 0:01:07]} 19. Rxd6 {[%clk 0:00:50.7]} 19...
Qxd6 {[%clk 0:01:07.9]} 20. fxe5 {[%clk 0:00:50.7]} 20... Qd7 {[%clk 0:00:37.2]}
21. exf6 {[%clk 0:00:50.5]} 21... Qxb5 {[%clk 0:00:36.5]} 0-1

[Event "*** Titled Tuesday Blitz"]
[Site "Chess.com"]
[Date "2021.03.09"]
[Round "6"]
[White "03revilo"]
[Black "SARGISMV"]
[Result "0-1"]
[WhiteElo "2316"]
[BlackElo "2467"]
[TimeControl "180+1"]
[EndTime "11:09:12 PST"]
[Termination "SARGISMV won by resignation"]

1. d4 {[%clk 0:03:00.9]} 1... c5 {[%clk 0:02:59.4]} 2. d5 {[%clk 0:03:00.7]}
2... e6 {[%clk 0:02:59.7]} 3. e4 {[%clk 0:02:58.7]} 3... exd5 {[%clk 0:02:57.6]}
4. exd5 {[%clk 0:02:59.6]} 4... a6 {[%clk 0:02:57.7]} 5. a4 {[%clk 0:02:59]}
5... d6 {[%clk 0:02:56.5]} 6. Nc3 {[%clk 0:02:58.1]} 6... Ne7 {[%clk 0:02:57]}
7. Nf3 {[%clk 0:02:55.8]} 7... Ng6 {[%clk 0:02:56.7]} 8. h4 {[%clk 0:02:35.2]}
8... Bg4 {[%clk 0:02:53]} 9. Be2 {[%clk 0:01:55.8]} 9... Bxf3 {[%clk 0:02:20.3]}
10. Bxf3 {[%clk 0:01:55.1]} 10... Nxh4 {[%clk 0:02:17.7]} 11. Qe2+ {[%clk
0:01:54.6]} 11... Kd7 {[%clk 0:02:17.6]} 12. Bg4+ {[%clk 0:01:00.1]} 12... Kc7
{[%clk 0:02:15]} 13. Bf4 {[%clk 0:00:59.2]} 13... Nxg2+ {[%clk 0:01:56.5]} 14.
Kf1 {[%clk 0:00:47.5]} 14... Nxf4 {[%clk 0:01:56.4]} 15. Qf3 {[%clk 0:00:47.8]}
15... g5 {[%clk 0:01:50.7]} 16. Re1 {[%clk 0:00:46.3]} 16... Bg7 {[%clk
0:01:46.6]} 17. Qe4 {[%clk 0:00:33]} 17... h5 {[%clk 0:01:37.9]} 18. Qe7+ {[%clk
0:00:31.7]} 18... Qxe7 {[%clk 0:01:37.4]} 19. Rxe7+ {[%clk 0:00:32.6]} 19... Kb6
{[%clk 0:01:33.7]} 20. Rxf7 {[%clk 0:00:30.3]} 20... hxg4 {[%clk 0:01:29.8]} 21.
Rxh8 {[%clk 0:00:28]} 21... Bxh8 {[%clk 0:01:30.7]} 22. Ne4 {[%clk 0:00:28.5]}
22... Be5 {[%clk 0:01:21.7]} 23. a5+ {[%clk 0:00:18.2]} 23... Kxa5 {[%clk
0:01:14.7]} 24. Rxb7 {[%clk 0:00:17.8]} 24... Nxd5 {[%clk 0:01:14.8]} 25. Nxg5
{[%clk 0:00:15.7]} 25... Nc6 {[%clk 0:01:14.1]} 0-1

[Event "*** Titled Tuesday Blitz"]
[Site "Chess.com"]
[Date "2021.03.09"]
[Round "6"]
[White "moro182"]
[Black "Sanan_Sjugirov"]
[Result "1/2-1/2"]
[WhiteElo "2706"]
[BlackElo "2892"]
[TimeControl "180+1"]
[EndTime "11:09:15 PST"]
[Termination "Game drawn by agreement"]

1. d4 {[%clk 0:03:00.9]} 1... Nf6 {[%clk 0:02:59.5]} 2. c4 {[%clk 0:02:59]} 2...
e6 {[%clk 0:02:59.3]} 3. Nc3 {[%clk 0:02:58.4]} 3... Bb4 {[%clk 0:02:58.6]} 4.
Nf3 {[%clk 0:02:59]} 4... b6 {[%clk 0:02:56.6]} 5. e3 {[%clk 0:02:57.7]} 5...
Ne4 {[%clk 0:02:50.8]} 6. Qc2 {[%clk 0:02:49.3]} 6... Bb7 {[%clk 0:02:49.4]} 7.
Bd3 {[%clk 0:02:47.2]} 7... Bxc3+ {[%clk 0:02:45]} 8. bxc3 {[%clk 0:02:48.1]}
8... f5 {[%clk 0:02:43.4]} 9. O-O {[%clk 0:02:47.7]} 9... O-O {[%clk 0:02:42.3]}
10. Nd2 {[%clk 0:02:45.9]} 10... Nxd2 {[%clk 0:02:26]} 11. Qxd2 {[%clk
0:02:44.5]} 11... d6 {[%clk 0:02:23.1]} 12. f3 {[%clk 0:02:41.3]} 12... Nd7
{[%clk 0:02:22.7]} 13. Ba3 {[%clk 0:02:29]} 13... e5 {[%clk 0:02:16.9]} 14. c5
{[%clk 0:02:26.3]} 14... dxc5 {[%clk 0:02:07.2]} 15. dxc5 {[%clk 0:02:18]} 15...
Nxc5 {[%clk 0:02:04.3]} 16. Bxc5 {[%clk 0:02:07.4]} 16... bxc5 {[%clk
0:02:05.2]} 17. Rfd1 {[%clk 0:02:07.1]} 17... Bc6 {[%clk 0:01:51.9]} 18. e4
{[%clk 0:01:54.9]} 18... fxe4 {[%clk 0:01:40.1]} 19. Bxe4 {[%clk 0:01:53.5]}
19... Bxe4 {[%clk 0:01:37]} 20. fxe4 {[%clk 0:01:53.2]} 20... Qxd2 {[%clk
0:00:54.6]} 21. Rxd2 {[%clk 0:01:54.1]} 21... Rab8 {[%clk 0:00:54.6]} 22. Rad1
{[%clk 0:01:51.2]} 22... h6 {[%clk 0:00:47.5]} 23. h3 {[%clk 0:01:46.4]} 23...
Kh7 {[%clk 0:00:44.6]} 24. Rd7 {[%clk 0:01:38.3]} 24... Rb2 {[%clk 0:00:41.9]}
25. R1d2 {[%clk 0:01:38.2]} 25... Rxd2 {[%clk 0:00:37.6]} 26. Rxd2 {[%clk
0:01:37.6]} 26... Rf4 {[%clk 0:00:37]} 27. Rd5 {[%clk 0:01:34.1]} 27... Rxe4
{[%clk 0:00:34.9]} 28. Rxc5 {[%clk 0:01:34.4]} 28... Ra4 {[%clk 0:00:15.8]} 29.
Rxe5 {[%clk 0:01:30.8]} 29... Rxa2 {[%clk 0:00:15.3]} 30. Rc5 {[%clk 0:01:30.2]}
30... a5 {[%clk 0:00:14.5]} 31. Rxc7 {[%clk 0:01:30.2]} 31... a4 {[%clk
0:00:14.9]} 32. Ra7 {[%clk 0:01:30.4]} 32... Rc2 {[%clk 0:00:14.8]} 33. Rxa4
{[%clk 0:01:30.2]} 33... Rxc3 {[%clk 0:00:15.2]} 1/2-1/2

[Event "*** Titled Tuesday Blitz"]
[Site "Chess.com"]
[Date "2021.03.09"]
[Round "6"]
[White "TorFredrikKaasen"]
[Black "RD4ever"]
[Result "0-1"]
[WhiteElo "2701"]
[BlackElo "2901"]
[TimeControl "180+1"]
[EndTime "11:09:15 PST"]
[Termination "RD4ever won by resignation"]

1. e4 {[%clk 0:03:00.9]} 1... e5 {[%clk 0:03:00]} 2. Nf3 {[%clk 0:03:01.1]} 2...
Nc6 {[%clk 0:03:00.6]} 3. Bb5 {[%clk 0:03:01.8]} 3... a6 {[%clk 0:03:00.8]} 4.
Ba4 {[%clk 0:03:01.9]} 4... Nf6 {[%clk 0:03:00.9]} 5. O-O {[%clk 0:03:02.5]}
5... b5 {[%clk 0:03:01]} 6. Bb3 {[%clk 0:03:02.6]} 6... Bc5 {[%clk 0:03:01.9]}
7. a4 {[%clk 0:02:58.7]} 7... Rb8 {[%clk 0:03:02]} 8. c3 {[%clk 0:02:58.9]} 8...
d6 {[%clk 0:03:02.2]} 9. d4 {[%clk 0:02:59.6]} 9... Bb6 {[%clk 0:03:02.7]} 10.
a5 {[%clk 0:03:00.3]} 10... Ba7 {[%clk 0:03:02.7]} 11. h3 {[%clk 0:03:01]} 11...
O-O {[%clk 0:03:02.4]} 12. Be3 {[%clk 0:03:01.6]} 12... Re8 {[%clk 0:03:02.5]}
13. dxe5 {[%clk 0:02:22.6]} 13... Bxe3 {[%clk 0:03:00.1]} 14. exf6 {[%clk
0:02:22.5]} 14... Bf4 {[%clk 0:03:00.3]} 15. fxg7 {[%clk 0:02:14.8]} 15... Qf6
{[%clk 0:03:00.4]} 16. Re1 {[%clk 0:02:04.5]} 16... Qxg7 {[%clk 0:02:51.4]} 17.
Nh4 {[%clk 0:01:59.2]} 17... Ne5 {[%clk 0:02:20.9]} 18. Kh1 {[%clk 0:01:18.1]}
18... Bxh3 {[%clk 0:02:07]} 19. gxh3 {[%clk 0:01:09.6]} 19... Qh6 {[%clk
0:02:06.9]} 20. Rg1+ {[%clk 0:01:04.4]} 20... Kh8 {[%clk 0:02:05.6]} 21. Rg4
{[%clk 0:00:49.7]} 21... Nxg4 {[%clk 0:02:05.5]} 22. Qxg4 {[%clk 0:00:50.6]}
22... Rg8 {[%clk 0:02:06.1]} 23. Nf5 {[%clk 0:00:51.3]} 23... Rxg4 {[%clk
0:01:42.1]} 24. Nxh6 {[%clk 0:00:51.4]} 24... Rh4 {[%clk 0:01:40.2]} 25. Nxf7+
{[%clk 0:00:45.8]} 25... Kg7 {[%clk 0:01:40.3]} 26. Na3 {[%clk 0:00:45.4]} 26...
b4 {[%clk 0:01:31.9]} 27. Rg1+ {[%clk 0:00:35.2]} 27... Kf6 {[%clk 0:01:31.4]}
28. cxb4 {[%clk 0:00:30]} 28... Rxh3+ {[%clk 0:01:28.8]} 29. Kg2 {[%clk
0:00:10.5]} 29... Rxb3 {[%clk 0:01:29.7]} 0-1

[Event "*** Titled Tuesday Blitz"]
[Site "Chess.com"]
[Date "2021.03.09"]
[Round "6"]
[White "SirStrateg"]
[Black "Zmeeed63"]
[Result "1-0"]
[WhiteElo "2607"]
[BlackElo "2458"]
[TimeControl "180+1"]
[EndTime "11:09:20 PST"]
[Termination "SirStrateg won by resignation"]

1. d4 {[%clk 0:02:57.3]} 1... d5 {[%clk 0:02:57.6]} 2. Bf4 {[%clk 0:02:56.6]}
2... Nf6 {[%clk 0:02:55.9]} 3. e3 {[%clk 0:02:56]} 3... c5 {[%clk 0:02:55.7]} 4.
c3 {[%clk 0:02:55.8]} 4... Nc6 {[%clk 0:02:48.4]} 5. Nd2 {[%clk 0:02:55.5]} 5...
Bg4 {[%clk 0:02:40.1]} 6. Qb3 {[%clk 0:02:54.9]} 6... Qb6 {[%clk 0:02:39]} 7.
dxc5 {[%clk 0:02:55]} 7... Qxb3 {[%clk 0:02:38.2]} 8. axb3 {[%clk 0:02:55.5]}
8... e5 {[%clk 0:02:33.2]} 9. Bg3 {[%clk 0:02:55.9]} 9... Be7 {[%clk 0:02:12.4]}
10. h3 {[%clk 0:02:52.5]} 10... Bh5 {[%clk 0:02:11.5]} 11. b4 {[%clk 0:02:52.3]}
11... Nd7 {[%clk 0:02:09.8]} 12. Ngf3 {[%clk 0:02:45.8]} 12... f6 {[%clk
0:02:02.5]} 13. Bb5 {[%clk 0:02:44.5]} 13... O-O {[%clk 0:02:01.5]} 14. O-O
{[%clk 0:02:44.2]} 14... a6 {[%clk 0:02:00.1]} 15. Bxc6 {[%clk 0:02:43.4]} 15...
bxc6 {[%clk 0:02:01]} 16. Nb3 {[%clk 0:02:34.7]} 16... Bxf3 {[%clk 0:01:49.7]}
17. gxf3 {[%clk 0:02:34.9]} 17... f5 {[%clk 0:01:50.6]} 18. f4 {[%clk
0:02:31.1]} 18... e4 {[%clk 0:01:47.6]} 19. Ra2 {[%clk 0:02:25.6]} 19... Rf6
{[%clk 0:01:46.7]} 20. Rfa1 {[%clk 0:02:23.5]} 20... Nb8 {[%clk 0:01:47.2]} 21.
Nd4 {[%clk 0:02:13.2]} 21... Rf7 {[%clk 0:01:37.5]} 22. Kg2 {[%clk 0:02:08.1]}
22... Ra7 {[%clk 0:01:35.7]} 23. f3 {[%clk 0:02:06.7]} 23... Rb7 {[%clk
0:01:34.9]} 24. fxe4 {[%clk 0:02:06.4]} 24... dxe4 {[%clk 0:01:29.3]} 25. h4
{[%clk 0:02:06.5]} 25... h5 {[%clk 0:01:10.7]} 26. Kh3 {[%clk 0:02:02.2]} 26...
Kf8 {[%clk 0:01:09.4]} 27. Be1 {[%clk 0:01:57.3]} 27... Rf6 {[%clk 0:01:05.2]}
28. Rxa6 {[%clk 0:01:54.8]} 28... Nxa6 {[%clk 0:01:04]} 29. Rxa6 {[%clk
0:01:55.1]} 29... Rc7 {[%clk 0:00:59.9]} 30. c4 {[%clk 0:01:44.7]} 30... Kf7
{[%clk 0:00:58.3]} 31. Bc3 {[%clk 0:01:44.2]} 31... Kg6 {[%clk 0:00:58.2]} 32.
Ne2 {[%clk 0:01:35]} 32... Rf8 {[%clk 0:00:57.1]} 33. Be5 {[%clk 0:01:31.7]}
33... Rb7 {[%clk 0:00:50.8]} 34. Rxc6+ {[%clk 0:01:31.2]} 34... Kf7 {[%clk
0:00:51.3]} 35. b5 {[%clk 0:01:29.7]} 35... Ra8 {[%clk 0:00:49.5]} 36. Nd4
{[%clk 0:01:28.7]} 36... Ra4 {[%clk 0:00:47.5]} 37. b3 {[%clk 0:01:25.6]} 37...
Ra1 {[%clk 0:00:45]} 38. Nxf5 {[%clk 0:01:25.3]} 38... Re1 {[%clk 0:00:40.9]}
39. Bd4 {[%clk 0:01:22.9]} 39... Bf6 {[%clk 0:00:39.1]} 40. Nd6+ {[%clk
0:01:21.8]} 1-0

[Event "*** Titled Tuesday Blitz"]
[Site "Chess.com"]
[Date "2021.03.09"]
[Round "6"]
[White "SantoBlue"]
[Black "frederiksvane"]
[Result "1-0"]
[WhiteElo "2854"]
[BlackElo "2652"]
[TimeControl "180+1"]
[EndTime "11:09:24 PST"]
[Termination "SantoBlue won by resignation"]

1. e4 {[%clk 0:03:00.9]} 1... c5 {[%clk 0:03:00.2]} 2. Nf3 {[%clk 0:03:01.2]}
2... g6 {[%clk 0:02:59.5]} 3. d4 {[%clk 0:02:57.2]} 3... cxd4 {[%clk 0:03:00.1]}
4. Nxd4 {[%clk 0:02:57.9]} 4... Nc6 {[%clk 0:03:00.3]} 5. Nc3 {[%clk 0:02:58.2]}
5... Bg7 {[%clk 0:03:00.5]} 6. Be3 {[%clk 0:02:58.5]} 6... Nf6 {[%clk 0:03:01]}
7. Bc4 {[%clk 0:02:58.4]} 7... O-O {[%clk 0:03:01]} 8. Bb3 {[%clk 0:02:57.7]}
8... Re8 {[%clk 0:02:41.9]} 9. O-O {[%clk 0:02:57.3]} 9... d6 {[%clk 0:02:36.6]}
10. h3 {[%clk 0:02:56.9]} 10... Na5 {[%clk 0:02:36]} 11. Qd2 {[%clk 0:02:55.6]}
11... a6 {[%clk 0:02:34.1]} 12. Bh6 {[%clk 0:02:54.6]} 12... b5 {[%clk
0:02:30.2]} 13. Bxg7 {[%clk 0:02:53.7]} 13... Kxg7 {[%clk 0:02:31.1]} 14. Rad1
{[%clk 0:02:50.1]} 14... Bb7 {[%clk 0:02:13.9]} 15. e5 {[%clk 0:02:49.2]} 15...
Nh5 {[%clk 0:00:45.8]} 16. g4 {[%clk 0:02:09.8]} 16... dxe5 {[%clk 0:00:11.5]}
17. Nf5+ {[%clk 0:02:08.7]} 17... Kh8 {[%clk 0:00:11.9]} 18. Qh6 {[%clk
0:01:55.4]} 18... Qc7 {[%clk 0:00:08]} 19. Bxf7 {[%clk 0:01:50.9]} 19... e6
{[%clk 0:00:03.5]} 20. Bxe8 {[%clk 0:01:34.3]} 20... Rxe8 {[%clk 0:00:04.4]} 21.
Nd6 {[%clk 0:01:32.9]} 21... Rg8 {[%clk 0:00:02.6]} 22. Nxb7 {[%clk 0:01:28.9]}
22... Qxb7 {[%clk 0:00:03.5]} 23. Qg5 {[%clk 0:01:20.7]} 23... Nc4 {[%clk
0:00:02.2]} 24. gxh5 {[%clk 0:01:12.7]} 24... Qa8 {[%clk 0:00:01.4]} 25. Qf6+
{[%clk 0:01:11.6]} 1-0